fUSD/lending_fUSD_20260703
["ID","MTS","AMOUNT","RATE_DAILY","PERIOD"]
[426950749,1783050572000,-2187.62204746,0.000149,2]
[426950754,1783050572000,-551.26360664,0.000149,2]
[426950764,1783050572000,-992.59722192,0.00014959,2]
[426950762,1783050572000,-3059.1396633,0.00014959,2]
[426950763,1783050572000,-2066.54244138,0.00014959,2]
[426950753,1783050572000,-2496.19243364,0.000149,2]
[426950759,1783050572000,-3059.1396633,0.000149,2]
[426950760,1783050572000,-1485.82176798,0.000149,2]
[426950761,1783050572000,-1573.31789532,0.00014959,2]
[426950757,1783050572000,-342.94757145,0.000149,2]
[426950755,1783050572000,-11.68362302,0.000149,2]
[426950756,1783050572000,-285.67497653,0.000149,2]
[426950752,1783050572000,-278.03003651,0.000149,2]
[426950758,1783050572000,-2430.51711532,0.000149,2]
[426950765,1783050596000,-1326.34605753,0.000149,2]
[426950769,1783050631000,-351.40277808,0.00014959,2]
[426950767,1783050631000,-174.4,0.00014301,2]
[426950768,1783050631000,-428.93027055,0.000149,2]
[426950772,1783050631000,-150.0,0.00014998,2]
[426950771,1783050631000,-151.0,0.00014997,2]
[426950773,1783050631000,-500.0,0.00014999,2]
[426950777,1783050631000,-913.46487747,0.00014999,2]
[426950774,1783050631000,-150.197885,0.00014999,2]
[426950775,1783050631000,-913.46487747,0.00014999,2]
[426950778,1783050631000,-913.46487747,0.00014999,2]
[426950776,1783050631000,-913.46487747,0.00014999,2]
[426950779,1783050631000,-913.46487747,0.00014999,2]
[426950770,1783050631000,-151.0,0.00014997,2]
[426950806,1783050632000,-913.46487747,0.00014999,2]
[426950803,1783050632000,-913.46487747,0.00014999,2]
[426950804,1783050632000,-913.46487747,0.00014999,2]
[426950807,1783050632000,-913.46487747,0.00014999,2]
[426950810,1783050632000,-913.46487747,0.00014999,2]
[426950808,1783050632000,-913.46487747,0.00014999,2]
[426950829,1783050632000,-913.46487747,0.00014999,2]
[426950814,1783050632000,-913.46487747,0.00014999,2]
[426950827,1783050632000,-913.46487747,0.00014999,2]
[426950821,1783050632000,-913.46487747,0.00014999,2]
[426950816,1783050632000,-913.46487747,0.00014999,2]
[426950819,1783050632000,-913.46487747,0.00014999,2]
[426950834,1783050632000,-913.46487747,0.00014999,2]
[426950823,1783050632000,-913.46487747,0.00014999,2]
[426950817,1783050632000,-913.46487747,0.00014999,2]
[426950835,1783050632000,-913.46487747,0.00014999,2]
[426950833,1783050632000,-913.46487747,0.00014999,2]
[426950818,1783050632000,-913.46487747,0.00014999,2]
[426950801,1783050632000,-913.46487747,0.00014999,2]
[426950831,1783050632000,-913.46487747,0.00014999,2]
[426950812,1783050632000,-913.46487747,0.00014999,2]
[426950786,1783050632000,-1.92457505,0.00014999,2]
[426950800,1783050632000,-913.46487747,0.00014999,2]
[426950780,1783050632000,-563.300858,0.00014999,2]
[426950785,1783050632000,-911.54030242,0.00014999,2]
[426950783,1783050632000,-221.26683549,0.00014999,2]
[426950782,1783050632000,-692.19804198,0.00014999,2]
[426950781,1783050632000,-350.16401947,0.00014999,2]
[426950784,1783050632000,-913.46487747,0.00014999,2]
[426950798,1783050632000,-913.46487747,0.00014999,2]
[426950788,1783050632000,-913.46487747,0.00014999,2]
[426950787,1783050632000,-913.46487747,0.00014999,2]
[426950790,1783050632000,-430.47393279,0.00014999,2]
[426950789,1783050632000,-913.46487747,0.00014999,2]
[426950791,1783050632000,-482.99094468,0.00014999,2]
[426950793,1783050632000,-913.36921643,0.00014999,2]
[426950796,1783050632000,-913.46487747,0.00014999,2]
[426950794,1783050632000,-913.46487747,0.00014999,2]
[426950795,1783050632000,-913.46487747,0.00014999,2]
[426950797,1783050632000,-913.46487747,0.00014999,2]
[426950799,1783050632000,-913.46487747,0.00014999,2]
[426950805,1783050632000,-913.46487747,0.00014999,2]
[426950802,1783050632000,-913.46487747,0.00014999,2]
[426950825,1783050632000,-913.46487747,0.00014999,2]
[426950792,1783050632000,-0.09566104,0.00014999,2]
[426950838,1783050632000,-913.46487747,0.00014999,2]
[426950863,1783050632000,-913.46487746,0.00014999,2]
[426950862,1783050632000,-913.46487746,0.00014999,2]
[426950865,1783050632000,-913.46487746,0.00014999,2]
[426950873,1783050632000,-913.46487746,0.00014999,2]
[426950864,1783050632000,-913.46487746,0.00014999,2]
[426950866,1783050632000,-913.46487746,0.00014999,2]
[426950870,1783050632000,-913.46487746,0.00014999,2]
[426950867,1783050632000,-913.46487746,0.00014999,2]
[426950869,1783050632000,-913.46487746,0.00014999,2]
[426950856,1783050632000,-913.46487746,0.00014999,2]
[426950868,1783050632000,-913.46487746,0.00014999,2]
[426950871,1783050632000,-913.46487746,0.00014999,2]
[426950874,1783050632000,-913.46487746,0.00014999,2]
[426950876,1783050632000,-913.46487746,0.00014999,2]
[426950877,1783050632000,-500.0,0.00014999,2]
[426950879,1783050632000,-913.46487746,0.00014999,2]
[426950880,1783050632000,-643.8978075,0.00014999,2]
[426950881,1783050632000,-470.0831583,0.00014999,2]
[426950878,1783050632000,-913.46487746,0.00014999,2]
[426950836,1783050632000,-913.46487747,0.00014999,2]
[426950872,1783050632000,-913.46487746,0.00014999,2]
[426950854,1783050632000,-913.46487746,0.00014999,2]
[426950875,1783050632000,-913.46487746,0.00014999,2]
[426950849,1783050632000,-913.46487746,0.00014999,2]
[426950846,1783050632000,-913.46487747,0.00014999,2]
[426950853,1783050632000,-913.46487746,0.00014999,2]
[426950848,1783050632000,-913.46487746,0.00014999,2]
[426950841,1783050632000,-913.46487747,0.00014999,2]
[426950843,1783050632000,-913.46487747,0.00014999,2]
[426950845,1783050632000,-913.46487747,0.00014999,2]
[426950840,1783050632000,-913.46487747,0.00014999,2]
[426950839,1783050632000,-913.46487747,0.00014999,2]
[426950847,1783050632000,-485.00579672,0.00014999,2]
[426950844,1783050632000,-913.46487747,0.00014999,2]
[426950842,1783050632000,-913.46487747,0.00014999,2]
[426950850,1783050632000,-913.46487746,0.00014999,2]
[426950861,1783050632000,-913.46487746,0.00014999,2]
[426950852,1783050632000,-913.46487746,0.00014999,2]
[426950851,1783050632000,-913.46487746,0.00014999,2]
[426950858,1783050632000,-560.578868,0.00014999,2]
[426950855,1783050632000,-913.46487746,0.00014999,2]
[426950859,1783050632000,-352.88600946,0.00014999,2]
[426950837,1783050632000,-913.46487747,0.00014999,2]
[426950857,1783050632000,-913.46487746,0.00014999,2]
[426950860,1783050632000,-913.46487746,0.00014999,2]
[426950997,1783050638000,-337.52928399,0.00014999,2]
[426950990,1783050638000,-500.0,0.00014999,2]
[426950991,1783050638000,-500.0,0.00014999,2]
[426950995,1783050638000,-500.0,0.00014999,2]
[426950992,1783050638000,-500.0,0.00014999,2]
[426950996,1783050638000,-500.0,0.00014999,2]
[426951001,1783050638000,-500.0,0.00014999,2]
[426950994,1783050638000,-162.32479247,0.00014999,2]
[426950998,1783050638000,-500.0,0.00014999,2]
[426950993,1783050638000,-500.0,0.00014999,2]
[426950984,1783050638000,-500.0,0.00014999,2]
[426950999,1783050638000,-500.0,0.00014999,2]
[426951000,1783050638000,-500.0,0.00014999,2]
[426951007,1783050638000,-372.51327888,0.00014999,2]
[426950989,1783050638000,-500.0,0.00014999,2]
[426951004,1783050638000,-913.46487744,0.00014999,2]
[426951014,1783050638000,-300.0,0.00014999,2]
[426951015,1783050638000,-666.0,0.00014999,2]
[426951005,1783050638000,-913.46487744,0.00014999,2]
[426951003,1783050638000,-500.0,0.00014999,2]
[426951009,1783050638000,-566.60613489,0.00014999,2]
[426951006,1783050638000,-913.46487744,0.00014999,2]
[426951010,1783050638000,-236.73429903,0.00014999,2]
[426951012,1783050638000,-547.42626013,0.00014999,2]
[426951013,1783050638000,-300.0,0.00014999,2]
[426951011,1783050638000,-300.0,0.00014999,2]
[426950986,1783050638000,-500.0,0.00014999,2]
[426951002,1783050638000,-500.0,0.00014999,2]
[426950982,1783050638000,-500.0,0.00014999,2]
[426950942,1783050638000,-500.0,0.00014999,2]
[426950968,1783050638000,-500.0,0.00014999,2]
[426950933,1783050638000,-913.46487746,0.00014999,2]
[426950937,1783050638000,-500.0,0.00014999,2]
[426950935,1783050638000,-500.0,0.00014999,2]
[426950938,1783050638000,-500.0,0.00014999,2]
[426950929,1783050638000,-913.46487746,0.00014999,2]
[426950931,1783050638000,-500.0,0.00014999,2]
[426950927,1783050638000,-443.38171916,0.00014999,2]
[426950940,1783050638000,-532.78369113,0.00014999,2]
[426951019,1783050638000,-193.39,0.00015,2]
[426950946,1783050638000,-500.0,0.00014999,2]
[426950944,1783050638000,-500.0,0.00014999,2]
[426950948,1783050638000,-500.0,0.00014999,2]
[426950954,1783050638000,-500.0,0.00014999,2]
[426950985,1783050638000,-500.0,0.00014999,2]
[426950960,1783050638000,-500.0,0.00014999,2]
[426950956,1783050638000,-301.90381337,0.00014999,2]
[426950958,1783050638000,-500.0,0.00014999,2]
[426950966,1783050638000,-500.0,0.00014999,2]
[426950962,1783050638000,-500.0,0.00014999,2]
[426950964,1783050638000,-500.0,0.00014999,2]
[426950970,1783050638000,-500.0,0.00014999,2]
[426950972,1783050638000,-500.0,0.00014999,2]
[426950976,1783050638000,-500.0,0.00014999,2]
[426950978,1783050638000,-500.0,0.00014999,2]
[426950988,1783050638000,-500.0,0.00014999,2]
[426950987,1783050638000,-500.0,0.00014999,2]
[426950974,1783050638000,-500.0,0.00014999,2]
[426950980,1783050638000,-500.0,0.00014999,2]
[426950950,1783050638000,-500.0,0.00014999,2]
[426951016,1783050638000,-11542.1512351,0.00014999,2]
[426951008,1783050638000,-500.0,0.00014999,2]
[426951020,1783050638000,-90440.98743911,0.00015,2]
[426951054,1783050638000,-500.0,0.00016438,2]
[426951069,1783050638000,-500.0,0.00016438,2]
[426951067,1783050638000,-500.0,0.00016438,2]
[426951073,1783050638000,-500.0,0.00016438,2]
[426951078,1783050638000,-500.0,0.00016438,2]
[426951076,1783050638000,-500.0,0.00016438,2]
[426951080,1783050638000,-500.0,0.00016438,2]
[426951071,1783050638000,-500.0,0.00016438,2]
[426951074,1783050638000,-500.0,0.00016438,2]
[426951091,1783050638000,-500.0,0.00016438,2]
[426951082,1783050638000,-500.0,0.00016438,2]
[426951088,1783050638000,-500.0,0.00016438,2]
[426951090,1783050638000,-500.0,0.00016438,2]
[426951052,1783050638000,-500.0,0.00016438,2]
[426951084,1783050638000,-500.0,0.00016438,2]
[426951095,1783050638000,-500.0,0.00016438,2]
[426951101,1783050638000,-500.0,0.00016438,2]
[426951097,1783050638000,-500.0,0.00016438,2]
[426951105,1783050638000,-500.0,0.00016438,2]
[426951099,1783050638000,-500.0,0.00016438,2]
[426951103,1783050638000,-500.0,0.00016438,2]
[426951107,1783050638000,-500.0,0.00016438,2]
[426951106,1783050638000,-500.0,0.00016438,2]
[426951111,1783050638000,-500.0,0.00016438,2]
[426951110,1783050638000,-500.0,0.00016438,2]
[426951109,1783050638000,-500.0,0.00016438,2]
[426951108,1783050638000,-500.0,0.00016438,2]
[426951018,1783050638000,-3409212.19763791,0.00015,2]
[426951093,1783050638000,-500.0,0.00016438,2]
[426951060,1783050638000,-500.0,0.00016438,2]
[426951086,1783050638000,-500.0,0.00016438,2]
[426951063,1783050638000,-500.0,0.00016438,2]
[426951021,1783050638000,-430.04002194,0.00015,2]
[426951065,1783050638000,-500.0,0.00016438,2]
[426951028,1783050638000,-161.96,0.00015653,2]
[426951022,1783050638000,-200.45891548,0.00015069,2]
[426951017,1783050638000,-300.0,0.00014999,2]
[426951023,1783050638000,-250.0,0.00015069,2]
[426951024,1783050638000,-513.12237384,0.00015069,2]
[426951029,1783050638000,-152.9,0.00015756,2]
[426951027,1783050638000,-260.42,0.00015621,2]
[426951025,1783050638000,-500.0,0.00015273,2]
[426951031,1783050638000,-500.0,0.00016095,2]
[426951042,1783050638000,-500.0,0.00016438,2]
[426951044,1783050638000,-500.0,0.00016438,2]
[426951030,1783050638000,-500.0,0.00015821,2]
[426951032,1783050638000,-255.0,0.00016123,2]
[426951026,1783050638000,-500.0,0.00015547,2]
[426951062,1783050638000,-500.0,0.00016438,2]
[426951050,1783050638000,-500.0,0.00016438,2]
[426951034,1783050638000,-4390.92323963,0.00016211,2]
[426951048,1783050638000,-500.0,0.00016438,2]
[426951058,1783050638000,-500.0,0.00016438,2]
[426951046,1783050638000,-500.0,0.00016438,2]
[426951039,1783050638000,-500.0,0.00016438,2]
[426951056,1783050638000,-500.0,0.00016438,2]
[426951037,1783050638000,-500.0,0.00016438,2]
[426951035,1783050638000,-461.43308934,0.00016369,2]
[426951040,1783050638000,-500.0,0.00016438,2]
[426951038,1783050638000,-500.0,0.00016438,2]
[426951033,1783050638000,-2774.22247009,0.00016211,2]
[426951036,1783050638000,-500.0,0.00016438,2]
[426951148,1783050639000,-500.0,0.00016438,2]
[426951156,1783050639000,-500.0,0.00016438,2]
[426951157,1783050639000,-500.0,0.00016438,2]
[426951154,1783050639000,-500.0,0.00016438,2]
[426951149,1783050639000,-500.0,0.00016438,2]
[426951146,1783050639000,-350.0,0.00016438,2]
[426951142,1783050639000,-500.0,0.00016438,2]
[426951147,1783050639000,-500.0,0.00016438,2]
[426951145,1783050639000,-500.0,0.00016438,2]
[426951144,1783050639000,-500.0,0.00016438,2]
[426951143,1783050639000,-500.0,0.00016438,2]
[426951158,1783050639000,-850.0,0.00016438,2]
[426951150,1783050639000,-500.0,0.00016438,2]
[426951164,1783050639000,-4390.92323963,0.00017522,2]
[426951177,1783050639000,-160.0,0.00019,2]
[426951155,1783050639000,-500.0,0.00016438,2]
[426951159,1783050639000,-1000.0,0.000165,2]
[426951160,1783050639000,-4460.1942527,0.000166,2]
[426951162,1783050639000,-1755.27632808,0.00017468,2]
[426951163,1783050639000,-2774.22247009,0.00017522,2]
[426951166,1783050639000,-854.02,0.00017645,2]
[426951165,1783050639000,-150.0,0.00017645,2]
[426951178,1783050639000,-225.84,0.00019042,2]
[426951168,1783050639000,-242.65866012,0.00017822,2]
[426951179,1783050639000,-282.92,0.00019355,7]
[426951172,1783050639000,-822.4947,0.000181,2]
[426951167,1783050639000,-500.0,0.00017817,2]
[426951169,1783050639000,-934.14157907,0.0001789,2]
[426951140,1783050639000,-500.0,0.00016438,2]
[426951161,1783050639000,-433.0,0.00017338,2]
[426951151,1783050639000,-500.0,0.00016438,2]
[426951113,1783050639000,-500.0,0.00016438,2]
[426951153,1783050639000,-500.0,0.00016438,2]
[426951176,1783050639000,-4390.92323963,0.00018834,2]
[426951112,1783050639000,-500.0,0.00016438,2]
[426951115,1783050639000,-500.0,0.00016438,2]
[426951125,1783050639000,-500.0,0.00016438,2]
[426951126,1783050639000,-500.0,0.00016438,2]
[426951114,1783050639000,-500.0,0.00016438,2]
[426951117,1783050639000,-500.0,0.00016438,2]
[426951120,1783050639000,-500.0,0.00016438,2]
[426951119,1783050639000,-500.0,0.00016438,2]
[426951118,1783050639000,-500.0,0.00016438,2]
[426951121,1783050639000,-500.0,0.00016438,2]
[426951122,1783050639000,-500.0,0.00016438,2]
[426951123,1783050639000,-500.0,0.00016438,2]
[426951116,1783050639000,-500.0,0.00016438,2]
[426951124,1783050639000,-500.0,0.00016438,2]
[426951129,1783050639000,-500.0,0.00016438,2]
[426951127,1783050639000,-500.0,0.00016438,2]
[426951130,1783050639000,-500.0,0.00016438,2]
[426951131,1783050639000,-277.0716841,0.00016438,2]
[426951134,1783050639000,-500.0,0.00016438,2]
[426951137,1783050639000,-500.0,0.00016438,2]
[426951136,1783050639000,-500.0,0.00016438,2]
[426951139,1783050639000,-500.0,0.00016438,2]
[426951133,1783050639000,-500.0,0.00016438,2]
[426951128,1783050639000,-500.0,0.00016438,2]
[426951138,1783050639000,-500.0,0.00016438,2]
[426951135,1783050639000,-500.0,0.00016438,2]
[426951132,1783050639000,-500.0,0.00016438,2]
[426951141,1783050639000,-500.0,0.00016438,2]
[426951152,1783050639000,-500.0,0.00016438,2]
[426951171,1783050639000,-375.96,0.00018016,2]
[426951175,1783050639000,-2774.22247009,0.00018833,2]
[426951173,1783050639000,-422.72873998,0.00018483,2]
[426951218,1783050639000,-200.0,0.00021918,2]
[426951210,1783050639000,-4390.92323963,0.00021456,2]
[426951211,1783050639000,-307.39,0.00021644,4]
[426951212,1783050639000,-500.0,0.00021917,2]
[426951213,1783050639000,-500.0,0.00021917,2]
[426951214,1783050639000,-500.0,0.00021917,2]
[426951209,1783050639000,-2774.22247009,0.00021456,2]
[426951219,1783050639000,-400.0,0.00021918,2]
[426951231,1783050639000,-151.0,0.00021979,2]
[426951230,1783050639000,-151.0,0.00021979,2]
[426951220,1783050639000,-200.0,0.00021918,2]
[426951232,1783050639000,-151.0,0.00021979,2]
[426951227,1783050639000,-151.0,0.00021979,2]
[426951225,1783050639000,-151.0,0.00021979,2]
[426951208,1783050639000,-4949.28,0.0002137,2]
[426951224,1783050639000,-151.0,0.00021979,2]
[426951226,1783050639000,-151.0,0.00021979,2]
[426951222,1783050639000,-151.0,0.00021979,2]
[426951221,1783050639000,-206.0,0.00021976,2]
[426951228,1783050639000,-151.0,0.00021979,2]
[426951229,1783050639000,-151.0,0.00021979,2]
[426951233,1783050639000,-151.0,0.00021979,2]
[426951235,1783050639000,-151.0,0.00021979,2]
[426951239,1783050639000,-151.0,0.00021979,2]
[426951238,1783050639000,-151.0,0.00021979,2]
[426951241,1783050639000,-151.0,0.00021979,2]
[426951237,1783050639000,-151.0,0.00021979,2]
[426951236,1783050639000,-151.0,0.00021979,2]
[426951234,1783050639000,-151.0,0.00021979,2]
[426951170,1783050639000,-548.71196494,0.00018,2]
[426951223,1783050639000,-151.0,0.00021979,2]
[426951207,1783050639000,-500.0,0.000211,3]
[426951240,1783050639000,-151.0,0.00021979,2]
[426951215,1783050639000,-500.0,0.00021917,2]
[426951217,1783050639000,-200.0,0.00021918,2]
[426951242,1783050639000,-422.72873998,0.00022067,2]
[426951174,1783050639000,-413.37594522,0.00018733,2]
[426951187,1783050639000,-24588.33,0.0002,2]
[426951182,1783050639000,-150.0,0.00019932,2]
[426951186,1783050639000,-474.61,0.0001995,2]
[426951184,1783050639000,-440.40020755,0.00019932,2]
[426951183,1783050639000,-213.0,0.00019932,2]
[426951189,1783050639000,-7132.0,0.0002,2]
[426951185,1783050639000,-1624.17,0.0001995,2]
[426951188,1783050639000,-3315.50232035,0.0002,2]
[426951190,1783050639000,-25865.20367919,0.0002,2]
[426951181,1783050639000,-500.0,0.0001988,2]
[426951192,1783050639000,-1755.27632808,0.00020036,2]
[426951191,1783050639000,-601.03761344,0.0002,2]
[426951180,1783050639000,-150.0,0.00019675,2]
[426951194,1783050639000,-4390.92323963,0.00020145,2]
[426951193,1783050639000,-2774.22247009,0.00020144,2]
[426951206,1783050639000,-150.0,0.00021,2]
[426951200,1783050639000,-150.0,0.0002058,2]
[426951204,1783050639000,-1120.63408577,0.00020869,2]
[426951202,1783050639000,-150.30039061,0.0002058,2]
[426951201,1783050639000,-150.0,0.0002058,2]
[426951205,1783050639000,-1018.13410328,0.00020869,2]
[426951199,1783050639000,-150.0,0.0002058,2]
[426951195,1783050639000,-10202.93874811,0.000204,2]
[426951203,1783050639000,-500.0,0.00020617,2]
[426951197,1783050639000,-150.0,0.0002058,2]
[426951216,1783050639000,-582.9167636,0.00021917,2]
[426951196,1783050639000,-225.84,0.00020411,2]
[426951198,1783050639000,-150.0,0.0002058,2]
[426951283,1783050640000,-4999.99,0.00024174,2]
[426951275,1783050640000,-9188.76,0.00024174,2]
[426951276,1783050640000,-2364.52,0.00024174,2]
[426951274,1783050640000,-53671.87,0.00024174,2]
[426951284,1783050640000,-10379.30332143,0.000243,2]
[426951278,1783050640000,-422.58,0.00024174,2]
[426951286,1783050640000,-1531.97468338,0.000243,2]
[426951285,1783050640000,-1098.83214781,0.000243,2]
[426951281,1783050640000,-9819.97,0.00024174,2]
[426951277,1783050640000,-499.99,0.00024174,2]
[426951270,1783050640000,-1285.77,0.00024174,2]
[426951282,1783050640000,-5814.6,0.00024174,2]
[426951289,1783050640000,-693.26,0.0002437,2]
[426951280,1783050640000,-26159.77,0.00024174,2]
[426951288,1783050640000,-234.42489464,0.000243,2]
[426951298,1783050640000,-500.0,0.00024658,2]
[426951287,1783050640000,-373.29612667,0.000243,2]
[426951299,1783050640000,-501.845442,0.00024658,2]
[426951290,1783050640000,-155.35781191,0.00024397,2]
[426951292,1783050640000,-10379.30332143,0.000245,2]
[426951291,1783050640000,-5072.07,0.00024499,2]
[426951295,1783050640000,-373.29612667,0.000245,2]
[426951293,1783050640000,-1098.83214781,0.000245,2]
[426951273,1783050640000,-9999.99,0.00024174,2]
[426951294,1783050640000,-1531.97468338,0.000245,2]
[426951279,1783050640000,-579.02,0.00024174,2]
[426951271,1783050640000,-9999.99,0.00024174,2]
[426951256,1783050640000,-4390.92323963,0.00024079,2]
[426951269,1783050640000,-2476.0,0.00024174,2]
[426951297,1783050640000,-173.931532,0.000245,14]
[426951244,1783050640000,-2774.22247009,0.00022767,2]
[426951243,1783050640000,-1755.27632808,0.00022604,2]
[426951245,1783050640000,-4390.92323963,0.00022767,2]
[426951257,1783050640000,-2370.63,0.00024174,2]
[426951247,1783050640000,-51441.89923407,0.00023,2]
[426951258,1783050640000,-273.89,0.00024174,2]
[426951259,1783050640000,-398.78,0.00024174,2]
[426951246,1783050640000,-294.9044363,0.00022845,2]
[426951252,1783050640000,-693.26,0.00023776,2]
[426951248,1783050640000,-510.48722197,0.00023339,2]
[426951251,1783050640000,-515.94290907,0.00023733,2]
[426951272,1783050640000,-150.99,0.00024174,2]
[426951253,1783050640000,-193.39,0.000238,7]
[426951254,1783050640000,-5072.07,0.00023814,2]
[426951255,1783050640000,-2774.22247009,0.00024078,2]
[426951249,1783050640000,-500.0,0.00023417,2]
[426951260,1783050640000,-11064.41,0.00024174,2]
[426951262,1783050640000,-9999.99,0.00024174,2]
[426951265,1783050640000,-9999.99,0.00024174,2]
[426951263,1783050640000,-299.99,0.00024174,7]
[426951264,1783050640000,-34380.51,0.00024174,2]
[426951261,1783050640000,-150.0,0.00024174,2]
[426951266,1783050640000,-9999.99,0.00024174,2]
[426951268,1783050640000,-14244.49,0.00024174,2]
[426951267,1783050640000,-999.99,0.00024174,2]
[426951250,1783050640000,-209.88,0.0002365,2]
[426951296,1783050640000,-182.77446,0.000245,14]
[426951301,1783050640000,-214.54,0.00024658,2]
[426951346,1783050640000,-891.44,0.0002575,2]
[426951329,1783050640000,-178.259386,0.00025284,14]
[426951328,1783050640000,-172.310809,0.00025284,120]
[426951334,1783050640000,-373.29612667,0.000253,2]
[426951330,1783050640000,-172.31081,0.00025284,14]
[426951335,1783050640000,-2774.22247009,0.00025389,2]
[426951339,1783050640000,-570.0,0.0002552,2]
[426951349,1783050640000,-437297.85395953,0.000258,2]
[426951340,1783050640000,-693.26,0.00025559,2]
[426951342,1783050640000,-274.31,0.00025675,7]
[426951338,1783050640000,-1098.83214781,0.000255,2]
[426951341,1783050640000,-422.72873998,0.0002565,2]
[426951344,1783050640000,-216.74224685,0.00025715,2]
[426951343,1783050640000,-500.0,0.0002571,2]
[426951347,1783050640000,-151.0,0.00025797,7]
[426951345,1783050640000,-232.255143,0.00025739,14]
[426951348,1783050640000,-10379.30332143,0.000258,2]
[426951350,1783050640000,-1098.83214781,0.000258,2]
[426951352,1783050640000,-186.19985,0.000258,2]
[426951356,1783050640000,-186.19985,0.000258,2]
[426951351,1783050640000,-186.19985,0.000258,2]
[426951354,1783050640000,-186.19985,0.000258,2]
[426951353,1783050640000,-589.774824,0.000258,2]
[426951357,1783050640000,-589.774824,0.000258,2]
[426951355,1783050640000,-589.774824,0.000258,2]
[426951306,1783050640000,-373.29612667,0.000248,2]
[426951332,1783050640000,-1098.83214781,0.000253,2]
[426951331,1783050640000,-10379.30332143,0.000253,2]
[426951333,1783050640000,-1531.97468338,0.000253,2]
[426951337,1783050640000,-10379.30332143,0.000255,2]
[426951304,1783050640000,-1098.83214781,0.000248,2]
[426951307,1783050640000,-342.94757144,0.000249,2]
[426951300,1783050640000,-170.57,0.00024658,2]
[426951303,1783050640000,-10379.30332143,0.000248,2]
[426951302,1783050640000,-153.99,0.00024658,2]
[426951305,1783050640000,-1531.97468338,0.000248,2]
[426951308,1783050640000,-176.87631877,0.00024926,2]
[426951311,1783050640000,-153.36277777,0.00024926,2]
[426951327,1783050640000,-178.259385,0.00025284,120]
[426951309,1783050640000,-197.64703173,0.00024926,2]
[426951310,1783050640000,-150.06632528,0.00024926,2]
[426951324,1783050640000,-6352.96,0.00025193,7]
[426951314,1783050640000,-693.26,0.00024965,2]
[426951322,1783050640000,-1755.27632808,0.00025171,2]
[426951312,1783050640000,-162.44949541,0.00024926,2]
[426951323,1783050640000,-5072.07,0.00025184,2]
[426951336,1783050640000,-4390.92323963,0.0002539,2]
[426951326,1783050640000,-150.55273775,0.00025202,4]
[426951325,1783050640000,-921.65178153,0.00025193,2]
[426951318,1783050640000,-1098.83214781,0.00025,2]
[426951317,1783050640000,-10379.30332143,0.00025,2]
[426951319,1783050640000,-1531.97468338,0.00025,2]
[426951320,1783050640000,-373.29612667,0.00025,2]
[426951316,1783050640000,-33859.18,0.00025,2]
[426951313,1783050640000,-200.0,0.00024949,2]
[426951315,1783050640000,-50000.0,0.00025,2]
[426951321,1783050640000,-1880.93831963,0.00025162,2]
[426951399,1783050641000,-10379.30332143,0.000263,2]
[426951398,1783050641000,-662.0,0.00026276,5]
[426951403,1783050641000,-200.0,0.00026345,2]
[426951405,1783050641000,-274.93890766,0.00026397,2]
[426951401,1783050641000,-175.565002,0.00026301,2]
[426951392,1783050641000,-1000.0,0.00026206,120]
[426951390,1783050641000,-179.74405478,0.0002618,2]
[426951393,1783050641000,-5000.0,0.00026209,2]
[426951391,1783050641000,-685.0,0.00026187,5]
[426951394,1783050641000,-673.0,0.00026212,5]